[Event "Asian Amateur-ch Open 2022"]
[Site "Muscat"]
[Date "2022.10.02"]
[Round "1.1"]
[White "Muhammad Shahzeb"]
[Black "Muhammad Iqtedar Uddin"]
[Result "1-0"]
[ECO "B07"]
[WhiteElo "1992"]
[BlackElo "1426"]
[Annotator "TA"]
[PlyCount "63"]
[EventDate "2022.09.29"]
[EventType "swiss"]
[SourceTitle "playchess.com"]
[Source "ChessBase"]
[SourceQuality "1"]
[TimeControl "5400+30"]

{[%evp 9,63,21,87,105,91,79,73,75,226,229,220,228,286,275,391,383,979,968,1102,1104,1098,1081,1160,1152,1206,1214,1368,1359,1362,1399,1485,1488,1455,1429,1445,1400,1341,1339,1887,1892,1864,1835,2699,2697,2650,2696,2393,2341,2482,2458,29985,29986,29986,29987,29988,29989]} 1. e4 {[%emt 0:00:02][%cal Be2e4,Be4e5][%mdl 32]} d6 {[%emt 1:31:00]} 2. d4 {[%emt 1:31:28]} Nf6 {[%emt 0:00:00]} 3. Nc3 {[%emt 0:00:00]} g6 {[%emt 0:00:00]} 4. Bg5 {[%emt 0:00:00]} Bg7 {[%emt 0:00:00]} 5. e5 {[%emt 0:00:00]} Ng4 {[%emt 0:00:00]} (5... Nfd7 $11) 6. h3 $16 {[%emt 0:00:00] B07: Pirc Defence: Miscellaneous Systems.} Nh6 {[%emt 0:00:00]} 7. Nf3 {[%emt 0:00:00][%cal Bg1f3,Bf3g5,Bg5e6][%mdl 32] [#] White is more active.} f6 $146 {[%emt 0:00:00]} ({Predecessor:} 7... O-O 8. Bd3 c5 9. exd6 Qxd6 10. dxc5 Qxc5 11. Bd2 Nc6 12. O-O Nf5 13. Re1 e5 {0-1 (76) Lima,V (1548)-Nobre,J (1661) Sao Paulo 2016}) 8. Bf4 {[%emt 0:00:00] White is better.} Nd7 $2 {[%emt 0:00:00] [#]} (8... fxe5 $16 {was necessary.} 9. dxe5 O-O 10. Bc4+ e6) 9. Qd2 $18 {[%emt 0:00:00]} g5 {[%emt 0:00:00]} 10. exf6 {[%emt 0:00:00]} Nxf6 {[%emt 0:00:00]} 11. Nxg5 {[%emt 0:00:00]} ({Resist} 11. Bxg5 $6 Nf7 12. Bd3 Nxg5 $18) 11... Bf5 {[%emt 0:00:00]} (11... O-O $142 12. O-O-O c6 13. Bc4+ d5) 12. g4 {[%emt 0:00:00]} Bg6 {[%emt 0:00:00]} (12... Bc8 13. Bc4 d5) 13. Ne6 {[%emt 0:00:00][%csl LRd8,LRg7,LRh6]} Qd7 {[%emt 0:00:00]} 14. Nxg7+ {[%emt 0:00:00]} Kd8 {[%emt 0:00:00]} 15. Bxh6 {[%emt 0:00:00]} c6 {[%emt 0:00:00]} 16. O-O-O {[%emt 0:00:00]} Kc7 {[%emt 0:00:00]} 17. Bc4 {[%emt 0:00:00][%cal Bf1c4,Bc4e6,Be6f5][%mdl 32]} Rac8 {[%emt 0:00:00]} 18. Be6 {[%emt 0:00:00]} Qd8 {[%emt 0:00:00]} 19. f4 {[%emt 0:00:00]} Be4 {[%emt 0:00:00]} 20. Nxe4 {[%emt 0:00:00]} Nxe4 {[%emt 0:00:00]} 21. Qe3 {[%emt 0:00:00]} d5 {[%emt 0:00:00]} 22. Bf5 {[%emt 0:00:00] [#] aiming for Ne6+.} Kb8 {[%emt 0:00:00]} 23. Bxe4 {[%emt 0:00:00]} Qd6 {[%emt 0:00:00]} 24. f5 {[%emt 0:00:00]} Ka8 {[%emt 0:00:00]} 25. Bd3 {[%emt 0:00:00]} Rc7 {[%emt 0:00:00]} 26. Bf4 {[%emt 0:00:00]} Qd7 {[%emt 0:00:00]} 27. Bxc7 {[%emt 0:00:00]} Qxc7 {[%emt 0:00:00]} 28. Ne6 {[%emt 0:00:00]} Qd6 {[%emt 0:00:00]} 29. Rde1 {[%emt 0:00:00]} Kb8 {[%emt 0:00:00]} 30. Nc5 {[%emt 0:00:00] White mates.} Re8 {[%emt 0:00:00]} 31. f6 {[%emt 0:00:00][%cal Bf5f6,Bf6f7][%mdl 32]} e6 {[%emt 0:00:00]} 32. f7 {[%emt 0:00:00] White took control after the opening.  Weighted Error Value: White=0.02 (flawless) /Black=0.60} 1-0

[Event "Asian Amateur-ch Open 2022"]
[Site "Muscat"]
[Date "2022.10.02"]
[Round "1.2"]
[White "Al Mamari, Said Ahmed"]
[Black "Maasarani, Mahmoud"]
[Result "1/2-1/2"]
[ECO "A48"]
[WhiteElo "1422"]
[BlackElo "1991"]
[Annotator "TA"]
[PlyCount "85"]
[EventDate "2022.09.29"]
[EventType "swiss"]
[SourceTitle "playchess.com"]
[Source "ChessBase"]
[SourceQuality "1"]
[TimeControl "5400+30"]

{[%evp 15,85,28,31,16,33,16,62,57,102,85,126,127,121,118,120,120,116,99,98,78,77,76,77,-48,-4,-6,-12,-6,13,0,86,70,114,88,93,89,93,35,37,30,31,13,34,-35,29,-2,0,-50,0,-19,14,-196,-191,-178,41,41,41,45,111,119,102,112,136,130,275,264,266,172,287,189,308,316]} 1. d4 {[%emt 0:00:05]} Nf6 {[%emt 0:00:36]} 2. Nf3 {[%emt 0:00:29]} g6 {[%emt 0:01:27]} 3. Bf4 {[%emt 0:01:01]} Bg7 {[%emt 0:00:49]} 4. e3 {[%emt 0:00:07]} O-O {[%emt 0:00:32]} 5. Be2 {[%emt 0:00:42]} d6 {[%emt 0:00:35]} 6. O-O {[%emt 0:01:18]} c6 {[%emt 0:06:46]} 7. h3 {[%emt 0:01:44]} Qb6 {[%emt 0:02:04]} 8. Qc1 {[%emt 0:07:58]} Nbd7 {[%emt 0:01:07][%cal Oe7e5]} 9. c4 {[%emt 0:05:50][%cal Bc2c4,Bc4c5][%mdl 32] A48: 1 d4 Nf6 2 Nf3 g6: Torre, London and Colle Systems.} Re8 {[%emt 0:03:18]} 10. Nc3 {[%emt 0:02:47]} a6 {[%emt 0:06:41]} (10... e5 $11 11. Bh2 exd4 12. exd4 c5) 11. Rd1 {[%emt 0:06:09] [#] White is slightly better.} Qa5 $146 {[%emt 0:04:45]} ({Predecessor:} 11... e5 12. dxe5 dxe5 13. Bg5 h6 14. Bh4 Nc5 15. Bg3 Nfe4 16. Nxe4 Nxe4 17. Bh2 a5 18. Qc2 {½-½ (18) Podshivalin,G (2129)-Okladnikov,G (2196) Novosibirsk 2007}) 12. a3 {[%emt 0:03:33]} b5 {[%emt 0:01:17]} 13. b4 {[%emt 0:01:15]} Qd8 {[%emt 0:02:32]} 14. c5 {[%emt 0:01:54]} d5 {[%emt 0:02:32]} 15. Qc2 {[%emt 0:02:17]} Nf8 {[%emt 0:07:59]} 16. Ne5 {[%emt 0:06:46]} Bf5 {[%emt 0:07:32]} 17. Bd3 {[%emt 0:02:22]} Bxd3 {[%emt 0:00:32]} 18. Qxd3 {[%emt 0:00:14]} Qc8 {[%emt 0:00:29]} 19. e4 {[%emt 0:08:20]} (19. a4 $16) 19... Rd8 {[%emt 0:03:18]} 20. f3 {[%emt 0:09:48]} Ne6 {[%emt 0:03:59]} 21. Be3 {[%emt 0:02:17]} Qc7 {[%emt 0:02:18]} 22. Qc2 {[%emt 0:03:04]} Nf8 {[%emt 0:19:43]} (22... a5 $11) 23. Qf2 $16 {[%emt 0:10:02]} e6 {[%emt 0:03:00]} 24. Bf4 {[%emt 0:02:44][%cal Oe5g6] Black must now prevent Nxg6!} Qc8 {[%emt 0:00:36]} 25. Bg5 {[%emt 0:02:38] aiming for Qh4.} h6 {[%emt 0:00:16]} 26. Bh4 {[%emt 0:00:11] White is much more active. The black rooks are badly placed.} (26. Be3 $16) 26... g5 $14 {[%emt 0:02:22]} 27. Bg3 {[%emt 0:00:07]} Nh5 {[%emt 0:00:10]} 28. Bh2 {[%emt 0:05:19]} f6 {[%emt 0:00:23]} 29. Ng4 {[%emt 0:02:46]} ({White should try} 29. Nd3 $14) 29... Ng6 {[%emt 0:00:13]} ({Black should play} 29... f5 $1 $15 30. Ne5 f4) 30. exd5 {[%emt 0:03:44]} exd5 {[%emt 0:00:05]} 31. Ra2 {[%emt 0:00:34]} (31. Qc2 $11 f5 32. Ne5 Nxe5 33. Bxe5) 31... Nhf4 {[%emt 0:00:30]} 32. Ne2 {[%emt 0:00:15]} h5 {[%emt 0:04:49]} 33. Nxf4 $2 {[%emt 0:00:15]} (33. Ne3 $11) 33... gxf4 $19 {[%emt 0:00:11]} 34. Qc2 {[%emt 0:01:00]} Kf7 {[%emt 0:03:03]} (34... hxg4 $19 35. Qxg6 g3) 35. Nf2 $14 {[%emt 0:00:03][%cal Bg4f2,Bf2d3,Bd3f4][%mdl 32]} Re8 {[%emt 0:01:22]} 36. Nd3 {[%emt 0:00:47]} Bh6 {[%emt 0:05:07] [#]} (36... Qf5 $14) 37. Nxf4 $1 $16 {[%emt 0:01:50][%mdl 512]} Bxf4 {[%emt 0:00:48]} 38. Bxf4 {[%emt 0:00:09]} Qe6 {[%emt 0:00:21]} 39. Bg3 $36 {[%emt 0:02:48][%mdl 2048] White is in control.} Rg8 {[%emt 0:00:03]} (39... a5 $16 {was worth a try.} 40. a4 (40. Re1 Qd7 $16) 40... axb4) 40. Re1 $18 {[%emt 0:00:22]} Qd7 {[%emt 0:00:39]} 41. Qd3 {[%emt 0:01:17]} Rg7 {[%emt 0:01:02]} (41... h4 {keeps fighting.}) 42. Kh2 {[%emt 0:00:28] Hoping for Rae2.} Rag8 {[%emt 0:00:14]} (42... Ne7 {is a better defense.} 43. Bf4 h4) 43. Rae2 {[%emt 0:00:39][%mdl 32768] White used his chance.  Weighted Error Value: White=0.35/Black=0.41. An unexpected result.} 1/2-1/2

[Event "Asian Amateur-ch Open 2022"]
[Site "Muscat"]
[Date "2022.10.02"]
[Round "1.4"]
[White "Ahmed Waqqas, Alawlaqi"]
[Black "Owlad, Ehsan"]
[Result "0-1"]
[ECO "A07"]
[WhiteElo "1417"]
[BlackElo "1962"]
[Annotator "TA"]
[PlyCount "76"]
[EventDate "2022.09.29"]
[EventType "swiss"]
[SourceTitle "playchess.com"]
[Source "ChessBase"]
[SourceQuality "1"]
[TimeControl "5400+30"]

{[%evp 10,76,31,27,29,8,8,-25,-6,-23,-23,-37,-16,-47,-52,-174,-2,-116,-102,-110,-87,-98,-33,-31,-18,-43,0,0,100,-20,0,-101,-110,-113,-12,-15,-16,-15,0,-60,94,95,145,118,118,0,0,0,0,-37,-54,-45,35,-12,-14,-72,-44,-188,-166,-238,-214,-235,0,-170,-113,-387,-371,-29987,-29987]} 1. Nf3 {[%emt 0:00:03]} Nf6 {[%emt 0:00:37]} 2. g3 {[%emt 0:00:07]} d5 {[%emt 0:00:16]} 3. Bg2 {[%emt 0:00:06]} Bf5 {[%emt 0:00:33]} 4. d3 {[%emt 0:00:43]} Nbd7 {[%emt 0:00:33]} 5. Nbd2 {[%emt 0:00:49]} e5 {[%emt 0:00:40]} 6. O-O {[%emt 0:01:04]} Bc5 {[%emt 0:01:15] A07: Réti Opening: New York and Capablanca Systems.} 7. Nh4 {[%emt 0:02:04]} Be6 {[%emt 0:02:47]} 8. c3 {[%emt 0:03:00]} c6 {[%emt 0:00:55] Black has an edge.} 9. e4 {[%emt 1:27:04]} O-O {[%emt 0:05:57]} 10. Qc2 {[%emt 0:00:00]} dxe4 {[%emt 0:02:28]} 11. dxe4 {[%emt 0:00:00]} a5 {[%emt 0:03:25] [#]} 12. Rd1 $146 {[%emt 0:00:00]} (12. Nf5 $15) ({Predecessor:} 12. Nhf3 h6 13. h3 Nh5 14. Kh2 Qf6 15. b3 Rfd8 16. Bb2 Bxf2 17. Rxf2 Nxg3 {1-0 (43) Ubeira Martinez,E (2022)-Lorenzo Duran,M (2215) Burgas 1999}) 12... Qb6 $2 {[%emt 0:00:33]} ({Better is} 12... Ng4 $1 $19 13. Rf1 Qb6) 13. Ndf3 {[%emt 0:00:00]} (13. Nb3 $11) 13... Ng4 {[%emt 0:02:19] And now ...Ndf6 would win.} 14. Rd2 {[%emt 0:00:00]} Rfd8 {[%emt 0:06:47] Black has more active pieces.} 15. h3 {[%emt 0:00:00]} Ngf6 {[%emt 0:00:19]} (15... Nxf2 $1 $17 16. Rxf2 Nf6) 16. Ng5 $15 {[%emt 0:00:00]} Bc4 {[%emt 0:08:23]} 17. b3 {[%emt 0:00:00]} Ba6 {[%emt 0:00:38]} (17... h6 $5 {[%cal Rh6g5]} 18. Ngf3 Be6 $11) 18. Nf5 {[%emt 0:00:00]} Nf8 {[%emt 0:02:06]} (18... Bf8 $11 {remains equal.}) 19. Bf1 {[%emt 0:00:00]} ({Only move:} 19. b4 $1 $16 {[%cal Rb4c5]} axb4 20. Qb3) 19... Rxd2 {[%emt 0:01:29] Really sharp!} 20. Qxd2 {[%emt 0:00:00]} (20. Bxd2 $11 {keeps the balance.} h6 21. Nf3) 20... h6 $1 $17 {[%emt 0:01:34]} 21. Bxa6 {[%emt 0:00:00]} bxa6 {[%emt 0:03:31]} ({Black should try} 21... Qxa6 $17 22. b4 hxg5 23. bxc5 Ne6) 22. Nf3 $11 {[%emt 0:00:00]} Nxe4 {[%emt 0:02:30]} 23. Qe2 {[%emt 0:00:00]} Nxf2 {[%emt 0:04:32] Threatens to win with ...Ng6.} ({But not} 23... Bxf2+ 24. Kg2 Bxg3 25. Nxg3 Nxg3 26. Qxe5 $16 (26. Kxg3 Ng6 $14)) 24. Kg2 {[%emt 0:00:00]} (24. Kh2 $1 $11) 24... e4 $2 {[%emt 0:01:03]} (24... Ng6 $1 $15) 25. N3d4 $16 {[%emt 0:00:00]} Bxd4 {[%emt 0:08:45]} (25... Nd3 $142) 26. cxd4 {[%emt 0:00:00]} Nd3 {[%emt 0:02:19] [#]} 27. Qg4 {[%emt 0:00:00]} (27. Bxh6 $1 $16 {[%mdl 512]} gxh6 28. Nxh6+ (28. Qxe4 Qb5 $11) 28... Kg7 29. Nf5+ Kg8 30. Ne7+ Kg7 31. Nf5+ Kg8 32. Nh6+ Kg7 33. Nf5+) 27... Ng6 $11 {[%emt 0:03:00] ...Ne1+ is the strong threat.} 28. Qxe4 {[%emt 0:00:00]} Qb5 {[%emt 0:04:00]} 29. Bd2 {[%emt 0:00:00]} Rd8 {[%emt 0:02:37]} 30. Rf1 {[%emt 0:00:00]} Nb4 {[%emt 0:01:25] Pair of Knights!} (30... c5 $15) 31. a3 {[%emt 0:02:33]} (31. h4 $14) 31... Nd5 {[%emt 0:01:00]} 32. Qf3 {[%emt 0:03:16]} (32. h4 $1 $11) 32... Rd7 {[%emt 0:05:18]} (32... Ndf4+ $5 33. Bxf4 Qxf5 $17) 33. Bxh6 {[%emt 0:01:10]} gxh6 $19 {[%emt 0:02:55]} 34. Nxh6+ {[%emt 0:00:23]} (34. Kg1 $142) 34... Kg7 {[%emt 0:00:42]} 35. Nf5+ {[%emt 0:02:04]} Kg8 {[%emt 0:04:57][%cal Od5f4] White must now prevent ...Ndf4+!} 36. Nh6+ {[%emt 0:00:18] [#]} Kh7 {[%emt 0:02:03]} (36... Kf8 $1 $19 {[%cal Od5f4] aiming for ...Ndf4+!} 37. Kh2 f6) 37. Nxf7 $2 {[%emt 0:01:07][%mdl 8192]} (37. a4 $17 Qb6 38. Nf5) 37... Ndf4+ {[%emt 0:00:17]} 38. gxf4 $2 {[%emt 0:00:55]} (38. Kh2 $19 Rxf7 39. a4) 38... Nh4+ {[%emt 0:00:11] Weighted Error Value: White=0.60/Black=0.44} 0-1

[Event "Asian Amateur-ch Open 2022"]
[Site "Muscat"]
[Date "2022.10.02"]
[Round "1.5"]
[White "Mohammed Tareq Abbood Al-Latoo"]
[Black "Osama, Abuhmeidan"]
[Result "1-0"]
[ECO "B50"]
[WhiteElo "1957"]
[BlackElo "1416"]
[Annotator "TA"]
[PlyCount "59"]
[EventDate "2022.09.29"]
[EventType "swiss"]
[SourceTitle "playchess.com"]
[Source "ChessBase"]
[SourceQuality "1"]
[TimeControl "5400+30"]

{[%evp 9,59,0,101,106,184,182,185,136,180,181,414,403,460,450,440,446,697,691,782,398,393,403,518,531,509,524,531,523,512,526,522,522,512,513,565,525,572,567,577,562,720,717,721,711,1368,578,933,941,1047,1031,936,885]} 1. e4 {[%emt 0:00:03]} c5 {[%emt 0:00:21]} 2. Nf3 {[%emt 0:00:07]} Nc6 {[%emt 0:00:10]} 3. Bc4 {[%emt 0:00:09]} d6 {[%emt 0:06:26]} 4. c3 {[%emt 0:00:20]} Nf6 {[%emt 0:00:32]} 5. d3 {[%emt 0:02:06]} Bg4 {[%emt 0:00:35]} (5... e6 $11 {keeps the balance.}) 6. Qb3 $16 {[%emt 0:00:57][%csl LRb7,LRf7] B50: Sicilian: 2...d6, Miscellaneous.} d5 {[%emt 0:14:42]} (6... Qb6 $16 {keeps fighting.}) 7. exd5 $18 {[%emt 0:03:08]} (7. Qxb7 dxc4 8. Qxc6+ Bd7 9. Qxc5 cxd3) 7... Na5 {[%emt 0:03:18]} 8. Qa4+ {[%emt 0:02:30]} (8. Bb5+ $18 Bd7 9. Qa4) 8... Bd7 {[%emt 0:02:52]} 9. Bb5 {[%emt 0:00:20] [#]} Qc7 $146 {[%emt 0:07:20]} (9... b6 {is a better defense.} 10. b4 (10. Ne5 a6 $16) 10... Nb7) ({Predecessor:} 9... b6 10. Ne5 a6 11. Bxd7+ Nxd7 12. Nxd7 Qxd7 13. Qxd7+ Kxd7 14. c4 e6 15. Nc3 Bd6 {1-0 (44) Blomqvist,E (2514)-Seo,J (1852) Stockholm 2015}) 10. Bf4 {[%emt 0:02:48]} Qb6 {[%emt 0:06:09]} 11. Bxd7+ {[%emt 0:03:22]} Nxd7 {[%emt 0:00:18]} 12. b4 {[%emt 0:03:34]} ({Don't play} 12. Ne5 Rd8 13. O-O g5 14. Bxg5 f6 15. Nxd7 Rxd7 $18) 12... e5 {[%emt 0:16:48]} (12... cxb4 $142 13. Be3 Qg6) 13. Nxe5 {[%emt 0:03:01][%csl Ge5][%cal Ra4d7] [#]} Rd8 {[%emt 0:06:17]} 14. Qxa5 {[%emt 0:02:51]} Nxe5 {[%emt 0:02:37]} 15. Qxb6 {[%emt 0:03:26]} ({Don't do} 15. Bxe5 Rxd5 16. Bg3 Rxd3 $18) 15... Nxd3+ {[%emt 0:01:39]} 16. Kd2 {[%emt 0:00:19][%cal Be1d2,Bd2d3,Bd3c4][%mdl 32] White is clearly winning.} axb6 {[%emt 0:00:19]} 17. Kxd3 {[%emt 0:00:11]} Rxd5+ {[%emt 0:01:11]} 18. Kc4 {[%emt 0:00:44]} Rf5 {[%emt 0:02:06]} 19. Re1+ {[%emt 0:00:14]} Kd7 {[%emt 0:00:11]} 20. Rd1+ {[%emt 0:01:06]} Ke6 {[%emt 0:05:38]} 21. Bg3 {[%emt 0:00:29]} Be7 {[%emt 0:00:36]} 22. Nd2 {[%emt 0:02:33][%cal Bb1d2,Bd2c4,Bc4b6,Bb6c4,Bc4d6][%mdl 32]} cxb4 {[%emt 0:01:09]} 23. cxb4 {[%emt 0:01:23]} Rc8+ {[%emt 0:00:52]} 24. Kb3 {[%emt 0:00:29]} Rd5 {[%emt 0:07:50]} 25. Nc4 {[%emt 0:02:43] [#] aiming for Rxd5.} Rxd1 {[%emt 0:00:46]} 26. Rxd1 {[%emt 0:00:15]} Bf6 {[%emt 0:00:38]} 27. Nxb6 {[%emt 0:01:11]} Rc6 {[%emt 0:00:26]} 28. Nc4 {[%emt 0:00:20]} b5 {[%emt 0:00:45]} 29. Rd6+ {[%emt 0:00:13]} Rxd6 {[%emt 0:01:37]} 30. Nxd6 {[%emt 0:00:03] Black did not feel at home in the position after the opening.  Weighted Error Value: White=0.41/Black=0.67} 1-0

[Event "Asian Amateur-ch Open 2022"]
[Site "Muscat"]
[Date "2022.10.02"]
[Round "1.6"]
[White "Abdulla Younes Alkhemeiri"]
[Black "Salim Mohammed, Salim Al Amri"]
[Result "0-1"]
[ECO "A53"]
[WhiteElo "1405"]
[BlackElo "1952"]
[Annotator "TA"]
[PlyCount "44"]
[EventDate "2022.09.29"]
[EventType "swiss"]
[SourceTitle "playchess.com"]
[Source "ChessBase"]
[SourceQuality "1"]
[TimeControl "5400+30"]

{[%evp 9,44,90,86,54,68,23,34,0,0,-23,35,-24,62,60,71,69,101,53,52,37,64,47,60,50,84,34,37,-156,-157,-700,-697,-2980,-2944,-2574,-2335,-1841,-1772]} 1. d4 {[%emt 0:00:15][%cal Bd2d4,Bd4d5][%mdl 32]} Nf6 {[%emt 0:01:14]} 2. c4 {[%emt 0:00:50]} d6 {[%emt 0:00:19]} 3. Nc3 {[%emt 0:01:29]} c6 {[%emt 0:00:15]} 4. e4 {[%emt 0:01:40]} Qa5 {[%emt 0:02:06]} 5. Bd3 {[%emt 0:03:27]} e5 {[%emt 0:00:41]} 6. d5 {[%emt 0:00:53] A53: Old Indian Defence without Nf3.} Nbd7 {[%emt 0:00:57]} 7. Be3 {[%emt 0:01:13]} Nc5 {[%emt 0:04:11]} 8. Bxc5 {[%emt 0:03:41] White is slightly better.} Qxc5 {[%emt 0:05:22]} 9. h3 {[%emt 0:03:27] [#]} b5 $146 {[%emt 0:04:07]} (9... g6 $11) ({Predecessor:} 9... Bd7 10. a3 cxd5 11. cxd5 Be7 12. Nf3 O-O 13. O-O Rac8 14. Rc1 Qb6 15. Qe2 a6 {0-1 (35) D'Agostini,R-De Carolis,M Italy 1997}) 10. Qb3 {[%emt 0:12:03]} (10. cxb5 $14 cxd5 11. exd5) 10... bxc4 {[%emt 0:03:10]} (10... cxd5 $1 $11 11. cxd5 Bd7) 11. Bxc4 $14 {[%emt 0:02:28] And now dxc6 would win.} Be7 {[%emt 0:01:49]} 12. dxc6 {[%emt 0:03:32]} O-O {[%emt 0:01:46] [#]} 13. Nd5 {[%emt 0:06:37]} (13. Nge2 $1 $16) 13... Nxd5 {[%emt 0:00:43]} (13... Nxe4 $2 14. Nxe7+ Kh8 15. Qc2 $16) 14. Bxd5 {[%emt 0:01:18]} Ba6 {[%emt 0:00:21]} 15. Qc3 {[%emt 0:08:57]} Qb5 {[%emt 0:00:14]} 16. O-O-O {[%emt 0:06:34]} Rab8 {[%emt 0:06:55]} 17. b3 {[%emt 0:09:47]} ({White should try} 17. Nf3 $16) 17... Rfc8 {[%emt 0:00:44]} 18. Qf3 $2 {[%emt 0:04:03]} (18. Kb1 $14 {keeps the upper hand.}) 18... Rxc6+ $17 {[%emt 0:05:17]} 19. Bxc6 $2 {[%emt 0:06:31] This costs White the game.} (19. Kb1 $17 Rc7 20. Qe3 (20. Qxf7+ $2 Kh8 $19)) 19... Qxc6+ $19 {[%emt 0:00:14] Black is clearly winning.} ({Wrong is} 19... Rc8 $2 20. Ne2 Qxe2 21. Qxe2 Bxe2 22. Rde1 Rxc6+ 23. Kb2 $19) 20. Kd2 {[%emt 0:02:33]} Rc8 {[%emt 0:01:38][%cal Od6d5]} 21. Ke1 {[%emt 0:04:24]} d5 {[%emt 0:00:14] [#] ( -> ...Bb4+)} 22. Ne2 {[%emt 0:10:18]} Qc2 {[%emt 0:02:16] Weighted Error Value: White=1.12/Black=0.13 (very precise)} 0-1

[Event "Asian Amateur-ch Open 2022"]
[Site "Muscat"]
[Date "2022.10.02"]
[Round "1.7"]
[White "Alharthi, Ahmed Mohammed A"]
[Black "Al Dhiyabi, Yousuf"]
[Result "1-0"]
[ECO "D02"]
[WhiteElo "1950"]
[BlackElo "1393"]
[Annotator "TA"]
[PlyCount "91"]
[EventDate "2022.09.29"]
[EventType "swiss"]
[SourceTitle "playchess.com"]
[Source "ChessBase"]
[SourceQuality "1"]
[TimeControl "5400+30"]

{[%evp 9,91,14,25,27,33,35,34,28,33,29,102,86,99,85,93,64,63,59,112,107,102,104,99,106,115,102,108,89,100,98,110,87,275,125,122,51,101,40,50,46,153,153,153,153,151,115,200,202,215,211,209,214,313,311,429,443,440,432,416,367,437,438,452,445,442,441,434,423,526,245,325,245,245,245,245,245,534,491,461,431,464,433,651,326]} 1. d4 {[%emt 0:00:04]} d5 {[%emt 0:00:19]} 2. Bf4 {[%emt 0:00:18]} Nf6 {[%emt 0:00:48]} 3. e3 {[%emt 0:00:22]} c6 {[%emt 0:02:46]} 4. Nf3 {[%emt 0:00:48]} Bg4 {[%emt 0:00:19]} 5. Be2 {[%emt 0:02:06]} Nbd7 {[%emt 0:02:34]} 6. h3 {[%emt 0:00:54] D02: 1 d4 d5 2 Nf3 sidelines, including 2...Nf6 3 g3 and 2...Nf6 3 Bf4.} Bh5 {[%emt 0:00:31]} 7. Nbd2 {[%emt 0:01:33]} e6 {[%emt 0:01:43]} 8. O-O {[%emt 0:00:35] White is slightly better.} Be7 {[%emt 0:00:28]} 9. c4 {[%emt 0:02:32] [#]} b6 $146 {[%emt 0:06:36]} (9... O-O $11 {remains equal.}) ({Predecessor:} 9... O-O 10. Rc1 a5 11. Bd3 Bg6 12. Bxg6 hxg6 13. Qe2 a4 14. Rfd1 Qb6 15. Rc2 dxc4 16. Nxc4 {1-0 (33) Harika,D (2517)-Przybylski,W (2321) Chess.com INT 2021}) 10. cxd5 {[%emt 0:02:14]} Nxd5 {[%emt 0:07:25]} 11. Bh2 {[%emt 0:01:04]} b5 {[%emt 0:10:10]} 12. Rc1 {[%emt 0:06:05]} Rc8 {[%emt 0:05:03]} 13. Ne4 {[%emt 0:01:41]} N7f6 {[%emt 0:07:55]} (13... O-O $14) 14. Nc5 $16 {[%emt 0:01:55]} Bxf3 {[%emt 0:10:20]} 15. Bxf3 {[%emt 0:03:52]} O-O {[%emt 0:05:02]} 16. Qe2 {[%emt 0:07:38]} Nd7 {[%emt 0:04:03]} 17. Nd3 {[%emt 0:03:54] White is more active.} Qb6 {[%emt 0:05:27]} 18. e4 {[%emt 0:05:30][%cal Be3e4,Be4d5][%mdl 32]} N5f6 {[%emt 0:01:33]} 19. d5 {[%emt 0:01:34]} cxd5 {[%emt 0:07:58]} 20. exd5 {[%emt 0:00:24]} a6 $2 {[%emt 0:03:23]} (20... Bd6 $16) 21. Rxc8 {[%emt 0:04:37]} (21. Rc6 $18 {is more deadly.} Rxc6 22. dxc6) 21... Rxc8 {[%emt 0:00:11] [#]} 22. Re1 {[%emt 0:00:16]} (22. dxe6 $1 $16 fxe6 23. Bg3 (23. Re1 Nf8 $16)) 22... Nc5 {[%emt 0:02:49]} ({Black should play} 22... Nf8 $14) 23. Nxc5 {[%emt 0:10:14]} ({White should try} 23. Qe3 $16) 23... Bxc5 $14 {[%emt 0:00:53]} 24. dxe6 {[%emt 0:01:00]} fxe6 {[%emt 0:03:33]} (24... Re8 $1 $14 25. Qd2 (25. exf7+ Kxf7 26. Be5 Bd4 $17) 25... Rxe6) 25. Qxe6+ $16 {[%emt 0:01:48]} Qxe6 {[%emt 0:00:28]} 26. Rxe6 {[%emt 0:00:12]} Bd4 {[%emt 0:02:04] [#] ( -> ...Rc1+)} 27. Bf4 {[%emt 0:02:30] Prevents Rc1+.} Bxb2 {[%emt 0:01:48]} (27... Rc2 $16) 28. Rxa6 $18 {[%emt 0:00:25]} b4 {[%emt 0:01:38]} 29. g4 {[%emt 0:01:41]} h6 {[%emt 0:00:58]} 30. h4 {[%emt 0:01:19][%cal Bh3h4,Bh4g5][%mdl 32]} Bc3 {[%emt 0:02:03]} (30... Bc1 $142) 31. g5 {[%emt 0:01:16]} hxg5 {[%emt 0:00:10]} 32. hxg5 {[%emt 0:00:02]} Nh7 {[%emt 0:00:40]} 33. Bd5+ {[%emt 0:00:36]} Kh8 {[%emt 0:00:40]} 34. Re6 {[%emt 0:00:29]} Nf8 {[%emt 0:01:06]} 35. Re3 {[%emt 0:01:23]} Kh7 {[%emt 0:00:46]} 36. Bf7 {[%emt 0:01:50][%cal Re3h3]} g6 {[%emt 0:01:27]} 37. Re7 {[%emt 0:00:04] Strongly threatening Be6+.} Kh8 {[%emt 0:00:18]} 38. Bb3 {[%emt 0:02:21]} Ra8 {[%emt 0:01:04]} 39. Rf7 {[%emt 0:01:23]} (39. Bc7 $142 Bg7 40. f4) 39... Rd8 {[%emt 0:00:28]} 40. Bc7 {[%emt 0:01:35]} Re8 {[%emt 0:00:51]} 41. Bd6 {[%emt 0:04:46]} Ne6 {[%emt 0:00:25]} 42. Be7 {[%emt 0:03:11] This bishop pair is nice.} Nd8 {[%emt 0:01:09]} (42... Ng7 43. Kf1 Nf5) 43. Bf6+ {[%emt 0:01:36] White is clearly winning.} Bxf6 {[%emt 0:00:50]} 44. Rxf6 {[%emt 0:00:06]} Kg7 {[%emt 0:00:33]} 45. f4 {[%emt 0:01:56]} Rf8 {[%emt 0:00:52]} (45... Re2 $142 46. Rd6 Re8) 46. Rd6 {[%emt 0:00:25] Weighted Error Value: White=0.23 (precise) /Black=0.44} 1-0